[Event "*** Biggest EVER Titled Tuesday"]
[Site "Chess.com"]
[Date "2018.04.17"]
[Round "6"]
[White "Arash_Tahbaz"]
[Black "David_Paravyan"]
[Result "1-0"]
[WhiteElo "2563"]
[BlackElo "2660"]
[TimeControl "180+2"]
[EndTime "14:23:53 PDT"]
[Termination "Arash_Tahbaz won by checkmate"]

1. d4 {[%clk 0:03:01.9]} 1... Nf6 {[%clk 0:02:59.8]} 2. c4 {[%clk 0:03:02.7]}
2... g6 {[%clk 0:03:00.2]} 3. Nc3 {[%clk 0:03:03.2]} 3... d5 {[%clk 0:03:01.4]}
4. Bg5 {[%clk 0:02:47.5]} 4... Bg7 {[%clk 0:03:00.4]} 5. Bxf6 {[%clk 0:02:37]}
5... Bxf6 {[%clk 0:03:02.1]} 6. cxd5 {[%clk 0:02:37.8]} 6... c6 {[%clk
0:03:03.4]} 7. e3 {[%clk 0:02:24.4]} 7... cxd5 {[%clk 0:03:03.5]} 8. Nf3 {[%clk
0:02:04.3]} 8... O-O {[%clk 0:03:02.8]} 9. Be2 {[%clk 0:02:05.3]} 9... Nc6
{[%clk 0:03:02.8]} 10. O-O {[%clk 0:02:04.7]} 10... b6 {[%clk 0:03:02.7]} 11.
Rc1 {[%clk 0:02:04.8]} 11... Bb7 {[%clk 0:03:03.2]} 12. Qd2 {[%clk 0:01:59.6]}
12... Qd7 {[%clk 0:03:02.1]} 13. Rfd1 {[%clk 0:01:58.4]} 13... Rfc8 {[%clk
0:03:00.8]} 14. Bb5 {[%clk 0:01:51]} 14... a6 {[%clk 0:03:00.6]} 15. Bf1 {[%clk
0:01:48]} 15... b5 {[%clk 0:02:31.2]} 16. Ne2 {[%clk 0:01:46.3]} 16... e6 {[%clk
0:02:21.9]} 17. Nf4 {[%clk 0:01:44.7]} 17... Qd8 {[%clk 0:02:06.1]} 18. Nd3
{[%clk 0:01:41.9]} 18... Na5 {[%clk 0:02:02.5]} 19. Nc5 {[%clk 0:01:39.2]} 19...
Bc6 {[%clk 0:02:01.6]} 20. b3 {[%clk 0:01:34.5]} 20... Nb7 {[%clk 0:02:01.8]}
21. Nd3 {[%clk 0:01:29.8]} 21... Be8 {[%clk 0:01:59.4]} 22. Nfe1 {[%clk
0:01:29]} 22... Be7 {[%clk 0:01:59.5]} 23. b4 {[%clk 0:01:16.8]} 23... a5 {[%clk
0:01:56.7]} 24. a3 {[%clk 0:01:15.8]} 24... Nd6 {[%clk 0:01:52]} 25. Rxc8 {[%clk
0:01:10.2]} 25... Qxc8 {[%clk 0:01:52.3]} 26. Nc5 {[%clk 0:01:09.8]} 26... Nc4
{[%clk 0:01:52.4]} 27. Qc3 {[%clk 0:01:01.6]} 27... axb4 {[%clk 0:01:51.4]} 28.
axb4 {[%clk 0:01:01.1]} 28... Ra3 {[%clk 0:01:52.5]} 29. Qc2 {[%clk 0:00:59.8]}
29... Qa8 {[%clk 0:01:50.1]} 30. Ned3 {[%clk 0:00:59.6]} 30... Ra2 {[%clk
0:01:48.7]} 31. Qc3 {[%clk 0:01:00.8]} 31... Ra3 {[%clk 0:01:43.9]} 32. Qc2
{[%clk 0:01:01.5]} 32... Ra1 {[%clk 0:01:43.2]} 33. Rxa1 {[%clk 0:00:58.9]}
33... Qxa1 {[%clk 0:01:44.8]} 34. g3 {[%clk 0:00:59.9]} 34... Bg5 {[%clk
0:01:41.2]} 35. Qe2 {[%clk 0:00:49.5]} 35... Qb1 {[%clk 0:01:36.7]} 36. Kg2
{[%clk 0:00:50.4]} 36... Bc6 {[%clk 0:01:34.8]} 37. h4 {[%clk 0:00:39.5]} 37...
Be7 {[%clk 0:01:34.7]} 38. Qe1 {[%clk 0:00:39.5]} 38... Qc2 {[%clk 0:01:32.3]}
39. Qe2 {[%clk 0:00:35.4]} 39... Qc3 {[%clk 0:01:31.6]} 40. Qa2 {[%clk
0:00:34.7]} 40... Na3 {[%clk 0:01:20.5]} 41. h5 {[%clk 0:00:33.4]} 41... Bxc5
{[%clk 0:01:17]} 42. bxc5 {[%clk 0:00:33.3]} 42... b4 {[%clk 0:01:16.9]} 43. Ne5
{[%clk 0:00:32.3]} 43... Ba4 {[%clk 0:01:14.3]} 44. h6 {[%clk 0:00:23.5]} 44...
f6 {[%clk 0:00:45.7]} 45. Qe2 {[%clk 0:00:23]} 45... fxe5 {[%clk 0:00:14.6]} 46.
Qa6 {[%clk 0:00:23.3]} 46... exd4 {[%clk 0:00:09.5]} 47. Qxa4 {[%clk 0:00:17.2]}
47... dxe3 {[%clk 0:00:08.7]} 48. Qe8# {[%clk 0:00:17.9]} 1-0

[Event "*** Biggest EVER Titled Tuesday"]
[Site "Chess.com"]
[Date "2018.04.17"]
[Round "6"]
[White "GMVallejo"]
[Black "Rakhmanov_Aleksandr"]
[Result "0-1"]
[WhiteElo "2754"]
[BlackElo "2663"]
[TimeControl "180+2"]
[EndTime "14:23:57 PDT"]
[Termination "Rakhmanov_Aleksandr won on time"]

1. e4 {[%clk 0:03:01.9]} 1... c5 {[%clk 0:03:00.2]} 2. Nf3 {[%clk 0:03:02.2]}
2... Nf6 {[%clk 0:03:01.4]} 3. Nc3 {[%clk 0:03:01.4]} 3... d5 {[%clk 0:03:01.7]}
4. exd5 {[%clk 0:02:55]} 4... Nxd5 {[%clk 0:03:03.6]} 5. Bb5+ {[%clk 0:02:52.2]}
5... Bd7 {[%clk 0:03:04.3]} 6. Qe2 {[%clk 0:02:41.2]} 6... Nb4 {[%clk
0:03:02.9]} 7. Bxd7+ {[%clk 0:02:33.3]} 7... Qxd7 {[%clk 0:03:01]} 8. d3 {[%clk
0:02:29.2]} 8... N8c6 {[%clk 0:03:02.4]} 9. a3 {[%clk 0:02:26.5]} 9... Nd5
{[%clk 0:03:03.8]} 10. O-O {[%clk 0:02:20.5]} 10... e6 {[%clk 0:03:04]} 11. Ne4
{[%clk 0:02:08.4]} 11... Be7 {[%clk 0:03:01.1]} 12. c4 {[%clk 0:01:57.5]} 12...
Nf6 {[%clk 0:02:51.5]} 13. Rd1 {[%clk 0:01:42.9]} 13... b6 {[%clk 0:02:27.3]}
14. b3 {[%clk 0:01:11.7]} 14... O-O {[%clk 0:01:59.2]} 15. Bb2 {[%clk
0:01:09.3]} 15... Nxe4 {[%clk 0:01:52.3]} 16. dxe4 {[%clk 0:01:11.2]} 16... Qc7
{[%clk 0:01:50.5]} 17. g3 {[%clk 0:01:06.3]} 17... Rad8 {[%clk 0:01:49.5]} 18.
h4 {[%clk 0:00:57.6]} 18... Rxd1+ {[%clk 0:01:48.7]} 19. Rxd1 {[%clk 0:00:57.5]}
19... Rd8 {[%clk 0:01:50.3]} 20. Bc3 {[%clk 0:00:58]} 20... h6 {[%clk
0:01:44.6]} 21. Rxd8+ {[%clk 0:00:53.1]} 21... Qxd8 {[%clk 0:01:44.3]} 22. e5
{[%clk 0:00:50.6]} 22... h5 {[%clk 0:01:21.7]} 23. Kg2 {[%clk 0:00:49]} 23... g6
{[%clk 0:01:22.5]} 24. Qe4 {[%clk 0:00:49.1]} 24... Qd7 {[%clk 0:01:23.4]} 25.
Ne1 {[%clk 0:00:41.1]} 25... Bd8 {[%clk 0:01:09.4]} 26. Nd3 {[%clk 0:00:35.3]}
26... Ne7 {[%clk 0:01:10.1]} 27. b4 {[%clk 0:00:28.6]} 27... cxb4 {[%clk
0:01:09.5]} 28. axb4 {[%clk 0:00:23.7]} 28... a6 {[%clk 0:00:40.5]} 29. Bd2
{[%clk 0:00:13.7]} 29... Qc6 {[%clk 0:00:32.8]} 30. Kf3 {[%clk 0:00:13.1]} 30...
Kf8 {[%clk 0:00:28.3]} 31. Qxc6 {[%clk 0:00:10.6]} 31... Nxc6 {[%clk 0:00:29]}
32. Ke4 {[%clk 0:00:12.1]} 32... Ke8 {[%clk 0:00:27.9]} 33. Bc3 {[%clk
0:00:12.5]} 33... Be7 {[%clk 0:00:24.3]} 34. f3 {[%clk 0:00:11.1]} 34... Kd7
{[%clk 0:00:24]} 35. Be1 {[%clk 0:00:11.6]} 35... b5 {[%clk 0:00:18.5]} 36. cxb5
{[%clk 0:00:10.4]} 36... axb5 {[%clk 0:00:20.4]} 37. g4 {[%clk 0:00:11.5]} 37...
Bf8 {[%clk 0:00:20.2]} 38. gxh5 {[%clk 0:00:11]} 38... gxh5 {[%clk 0:00:22.1]}
39. Nf4 {[%clk 0:00:11.4]} 39... Bxb4 {[%clk 0:00:22.9]} 40. Bxb4 {[%clk
0:00:08.7]} 40... Nxb4 {[%clk 0:00:24.8]} 41. Nxh5 {[%clk 0:00:10.2]} 41... Ke7
{[%clk 0:00:24.1]} 42. Nf6 {[%clk 0:00:09.9]} 42... Kf8 {[%clk 0:00:24.6]} 43.
Kf4 {[%clk 0:00:06.5]} 43... Nd3+ {[%clk 0:00:23.2]} 44. Ke4 {[%clk 0:00:05.6]}
44... Ne1 {[%clk 0:00:18.6]} 45. f4 {[%clk 0:00:03.4]} 45... b4 {[%clk
0:00:17.9]} 0-1

[Event "*** Biggest EVER Titled Tuesday"]
[Site "Chess.com"]
[Date "2018.04.17"]
[Round "6"]
[White "Shant_Sargsyan"]
[Black "GMKrikor"]
[Result "1-0"]
[WhiteElo "2804"]
[BlackElo "2619"]
[TimeControl "180+2"]
[EndTime "14:23:59 PDT"]
[Termination "Shant_Sargsyan won by resignation"]

1. d4 {[%clk 0:03:00.7]} 1... Nf6 {[%clk 0:03:00.5]} 2. c4 {[%clk 0:02:58.6]}
2... e6 {[%clk 0:03:01.2]} 3. Nf3 {[%clk 0:02:59]} 3... d5 {[%clk 0:03:01.3]} 4.
Nc3 {[%clk 0:02:59.6]} 4... Bb4 {[%clk 0:02:59.5]} 5. Bg5 {[%clk 0:02:59.6]}
5... h6 {[%clk 0:02:59.9]} 6. Bxf6 {[%clk 0:03:00.5]} 6... Qxf6 {[%clk
0:03:01.8]} 7. e3 {[%clk 0:03:01.9]} 7... O-O {[%clk 0:02:59.8]} 8. Qb3 {[%clk
0:03:03.4]} 8... c5 {[%clk 0:02:46.7]} 9. cxd5 {[%clk 0:03:04.2]} 9... exd5
{[%clk 0:02:44.9]} 10. dxc5 {[%clk 0:03:04.7]} 10... Bxc3+ {[%clk 0:02:37.5]}
11. Qxc3 {[%clk 0:03:06.6]} 11... Qxc3+ {[%clk 0:02:38.4]} 12. bxc3 {[%clk
0:03:08.5]} 12... Nd7 {[%clk 0:02:36]} 13. Rd1 {[%clk 0:03:09.2]} 13... Nxc5
{[%clk 0:02:37.3]} 14. Rxd5 {[%clk 0:03:10.1]} 14... b6 {[%clk 0:02:38.8]} 15.
Rd4 {[%clk 0:03:11.6]} 15... Be6 {[%clk 0:02:22.5]} 16. Bc4 {[%clk 0:03:06.6]}
16... Rfc8 {[%clk 0:02:18.8]} 17. Kd2 {[%clk 0:02:04.4]} 17... Rc7 {[%clk
0:02:08.9]} 18. Bxe6 {[%clk 0:01:48.9]} 18... Nxe6 {[%clk 0:02:10.8]} 19. Rb4
{[%clk 0:01:50]} 19... Rc5 {[%clk 0:02:03.9]} 20. Nd4 {[%clk 0:01:45.6]} 20...
Ra5 {[%clk 0:02:01.2]} 21. Ra1 {[%clk 0:01:43.9]} 21... Nc5 {[%clk 0:01:42.4]}
22. f3 {[%clk 0:01:43.3]} 22... Rc8 {[%clk 0:01:41.4]} 23. a4 {[%clk 0:01:39.7]}
23... Rd8 {[%clk 0:01:25.6]} 24. Kc2 {[%clk 0:01:37.4]} 24... Rc8 {[%clk
0:01:23.8]} 25. Rb5 {[%clk 0:01:32.6]} 25... Ra6 {[%clk 0:01:03.2]} 26. Rb4
{[%clk 0:01:33.9]} 26... Ra5 {[%clk 0:01:04.5]} 27. e4 {[%clk 0:01:30.3]} 27...
g6 {[%clk 0:00:56.8]} 28. Nb3 {[%clk 0:01:30]} 28... Nxb3 {[%clk 0:00:40.7]} 29.
Kxb3 {[%clk 0:01:30.7]} 29... Rac5 {[%clk 0:00:36.8]} 30. Rc1 {[%clk 0:01:27.4]}
30... Rd8 {[%clk 0:00:37.4]} 31. Rb5 {[%clk 0:01:22.5]} 31... Rc6 {[%clk
0:00:33.5]} 32. Rd5 {[%clk 0:01:22.4]} 32... Rdc8 {[%clk 0:00:32.7]} 33. c4
{[%clk 0:01:22.3]} 33... Kg7 {[%clk 0:00:32.9]} 34. Kb4 {[%clk 0:01:16.8]} 34...
Kf6 {[%clk 0:00:32.3]} 35. a5 {[%clk 0:01:16.5]} 35... bxa5+ {[%clk 0:00:24.7]}
36. Rxa5 {[%clk 0:01:17.4]} 36... a6 {[%clk 0:00:25.9]} 37. c5 {[%clk
0:01:18.4]} 37... Rb8+ {[%clk 0:00:26.2]} 38. Kc4 {[%clk 0:01:15.8]} 38... Rb2
{[%clk 0:00:26.2]} 39. Kd5 {[%clk 0:01:16.7]} 39... Rc8 {[%clk 0:00:26.4]} 40.
Rxa6+ {[%clk 0:01:13.5]} 40... Kg5 {[%clk 0:00:27.7]} 41. c6 {[%clk 0:00:55.3]}
41... Rxg2 {[%clk 0:00:26.2]} 42. c7 {[%clk 0:00:53.2]} 42... Rxh2 {[%clk
0:00:20.1]} 43. Kc6 {[%clk 0:00:52.5]} 43... Rf2 {[%clk 0:00:17]} 44. Kd7 {[%clk
0:00:49]} 44... Rxc7+ {[%clk 0:00:16.4]} 45. Rxc7 {[%clk 0:00:48.8]} 45... Rxf3
{[%clk 0:00:18.3]} 46. Ke7 {[%clk 0:00:48]} 46... f5 {[%clk 0:00:10.5]} 47. Rcc6
{[%clk 0:00:49.1]} 47... fxe4 {[%clk 0:00:11.2]} 48. Rxg6+ {[%clk 0:00:50.9]}
48... Kf4 {[%clk 0:00:13.1]} 49. Raf6+ {[%clk 0:00:50.7]} 49... Ke3 {[%clk
0:00:14.3]} 50. Ra6 {[%clk 0:00:43.6]} 50... Kf2 {[%clk 0:00:14]} 51. Ra2+
{[%clk 0:00:43.4]} 51... Ke3 {[%clk 0:00:08.4]} 52. Rxh6 {[%clk 0:00:45.3]}
52... Kf4 {[%clk 0:00:07.1]} 53. Rf6+ {[%clk 0:00:44.9]} 53... Kg4 {[%clk
0:00:05.8]} 54. Rg2+ {[%clk 0:00:41.9]} 54... Kh3 {[%clk 0:00:05.8]} 55. Re2
{[%clk 0:00:43]} 1-0

[Event "*** Biggest EVER Titled Tuesday"]
[Site "Chess.com"]
[Date "2018.04.17"]
[Round "6"]
[White "sergeikim"]
[Black "vovachesss"]
[Result "0-1"]
[WhiteElo "2446"]
[BlackElo "2367"]
[TimeControl "180+2"]
[EndTime "14:24:16 PDT"]
[Termination "vovachesss won by resignation"]

1. d4 {[%clk 0:02:59.6]} 1... Nf6 {[%clk 0:02:50.2]} 2. c4 {[%clk 0:03:00.1]}
2... e6 {[%clk 0:02:49.5]} 3. Nc3 {[%clk 0:03:00.8]} 3... Bb4 {[%clk 0:02:50.8]}
4. Qc2 {[%clk 0:03:01.5]} 4... O-O {[%clk 0:02:51.9]} 5. a3 {[%clk 0:03:02.4]}
5... Bxc3+ {[%clk 0:02:52.4]} 6. Qxc3 {[%clk 0:03:03.5]} 6... b6 {[%clk
0:02:53]} 7. Nf3 {[%clk 0:03:04.2]} 7... Bb7 {[%clk 0:02:53.9]} 8. g3 {[%clk
0:03:05.1]} 8... d6 {[%clk 0:02:54.5]} 9. Bg2 {[%clk 0:03:06]} 9... Nbd7 {[%clk
0:02:56.4]} 10. O-O {[%clk 0:03:06.8]} 10... Qe7 {[%clk 0:02:57.5]} 11. b3
{[%clk 0:03:05.3]} 11... e5 {[%clk 0:02:55.7]} 12. d5 {[%clk 0:03:01]} 12... a5
{[%clk 0:02:56.4]} 13. Bb2 {[%clk 0:03:01.2]} 13... Nc5 {[%clk 0:02:54.9]} 14.
Nh4 {[%clk 0:03:00.1]} 14... Bc8 {[%clk 0:02:53.9]} 15. Qc2 {[%clk 0:02:57]}
15... g5 {[%clk 0:02:39.2]} 16. Nf5 {[%clk 0:02:51.5]} 16... Qd7 {[%clk
0:02:31.7]} 17. Ne3 {[%clk 0:02:24.3]} 17... a4 {[%clk 0:02:22.9]} 18. b4 {[%clk
0:02:19.6]} 18... Nb3 {[%clk 0:02:22.7]} 19. Rad1 {[%clk 0:02:20.9]} 19... Re8
{[%clk 0:02:10.8]} 20. Qc3 {[%clk 0:02:18.5]} 20... Ng4 {[%clk 0:01:52.6]} 21.
Nxg4 {[%clk 0:02:09.4]} 21... Qxg4 {[%clk 0:01:52.7]} 22. f4 {[%clk 0:01:32.9]}
22... gxf4 {[%clk 0:01:39.7]} 23. Rxf4 {[%clk 0:01:32.2]} 23... Qg7 {[%clk
0:01:11.8]} 24. e3 {[%clk 0:01:12.6]} 24... Bg4 {[%clk 0:01:02.8]} 25. Rdf1
{[%clk 0:01:08.9]} 25... Bh5 {[%clk 0:01:03.2]} 26. R4f2 {[%clk 0:00:48.9]}
26... Rf8 {[%clk 0:00:50.3]} 27. Bh3 {[%clk 0:00:48.1]} 27... Kh8 {[%clk
0:00:46.9]} 28. Bf5 {[%clk 0:00:47.9]} 28... Qg5 {[%clk 0:00:40.8]} 29. Bc1
{[%clk 0:00:44.7]} 29... Nxc1 {[%clk 0:00:28.6]} 30. Rxc1 {[%clk 0:00:43.5]}
30... Bg6 {[%clk 0:00:28.4]} 31. Rcf1 {[%clk 0:00:44]} 31... Kg7 {[%clk
0:00:28.7]} 32. e4 {[%clk 0:00:44.3]} 32... h5 {[%clk 0:00:20.9]} 33. h4 {[%clk
0:00:44.4]} 33... Qe7 {[%clk 0:00:21.5]} 34. Kg2 {[%clk 0:00:44.3]} 34... Rg8
{[%clk 0:00:21.7]} 35. c5 {[%clk 0:00:39.7]} 35... dxc5 {[%clk 0:00:21.8]} 36.
bxc5 {[%clk 0:00:40.2]} 36... bxc5 {[%clk 0:00:21.4]} 37. Bxg6 {[%clk
0:00:37.5]} 37... Kxg6 {[%clk 0:00:15.8]} 38. Rxf7 {[%clk 0:00:34.7]} 38... Qxf7
{[%clk 0:00:15.7]} 39. Rxf7 {[%clk 0:00:35.1]} 39... Kxf7 {[%clk 0:00:17.4]} 40.
Qxe5 {[%clk 0:00:35]} 40... Rab8 {[%clk 0:00:15.9]} 41. Qxc7+ {[%clk 0:00:34.9]}
41... Kf6 {[%clk 0:00:17.1]} 42. Qxc5 {[%clk 0:00:28.9]} 42... Rb3 {[%clk
0:00:16.5]} 43. Qd6+ {[%clk 0:00:27.3]} 43... Kf7 {[%clk 0:00:15.9]} 44. Qf4+
{[%clk 0:00:26.8]} 44... Ke7 {[%clk 0:00:16.2]} 45. e5 {[%clk 0:00:27.7]} 45...
Rxa3 {[%clk 0:00:10.2]} 46. e6 {[%clk 0:00:21.8]} 46... Rgxg3+ {[%clk
0:00:08.4]} 47. Kh2 {[%clk 0:00:17.8]} 47... Rh3+ {[%clk 0:00:08.9]} 48. Kg2
{[%clk 0:00:18.9]} 48... Rag3+ {[%clk 0:00:10.6]} 49. Kf2 {[%clk 0:00:20.1]}
49... Rf3+ {[%clk 0:00:11.2]} 50. Qxf3 {[%clk 0:00:21]} 50... Rxf3+ {[%clk
0:00:12.8]} 51. Kxf3 {[%clk 0:00:22.6]} 51... a3 {[%clk 0:00:13.9]} 52. Ke4
{[%clk 0:00:24.2]} 52... a2 {[%clk 0:00:15]} 0-1

[Event "*** Biggest EVER Titled Tuesday"]
[Site "Chess.com"]
[Date "2018.04.17"]
[Round "6"]
[White "pKiLz5Rn9b"]
[Black "Oleksandr_Bortnyk"]
[Result "0-1"]
[WhiteElo "2634"]
[BlackElo "2798"]
[TimeControl "180+2"]
[EndTime "14:24:20 PDT"]
[Termination "Oleksandr_Bortnyk won by resignation"]

1. b3 {[%clk 0:03:01.4]} 1... d5 {[%clk 0:02:59.3]} 2. Bb2 {[%clk 0:03:02.2]}
2... Bf5 {[%clk 0:03:00.3]} 3. Nf3 {[%clk 0:03:03.1]} 3... e6 {[%clk 0:02:59.8]}
4. g3 {[%clk 0:03:04]} 4... h6 {[%clk 0:02:59.1]} 5. Bg2 {[%clk 0:03:05.2]} 5...
Nf6 {[%clk 0:03:00.4]} 6. O-O {[%clk 0:03:06.1]} 6... Be7 {[%clk 0:03:01.8]} 7.
c4 {[%clk 0:03:07.5]} 7... c6 {[%clk 0:03:02.8]} 8. d4 {[%clk 0:03:09.2]} 8...
O-O {[%clk 0:03:03.2]} 9. Nfd2 {[%clk 0:03:10.3]} 9... Bh7 {[%clk 0:03:02.1]}
10. Nc3 {[%clk 0:03:09.2]} 10... a5 {[%clk 0:03:02.8]} 11. a3 {[%clk 0:02:56.2]}
11... Qb6 {[%clk 0:02:40.6]} 12. Rc1 {[%clk 0:02:18]} 12... Qxd4 {[%clk
0:02:12.2]} 13. cxd5 {[%clk 0:02:14.6]} 13... Qg4 {[%clk 0:00:56.4]} 14. e4
{[%clk 0:01:40.3]} 14... Qxd1 {[%clk 0:00:48.8]} 15. Rfxd1 {[%clk 0:01:42.2]}
15... Ng4 {[%clk 0:00:30.6]} 16. Nc4 {[%clk 0:01:29.3]} 16... Bc5 {[%clk
0:00:31.2]} 17. Rd2 {[%clk 0:01:18]} 17... b5 {[%clk 0:00:31.6]} 18. dxc6 {[%clk
0:00:31.6]} 18... bxc4 {[%clk 0:00:27.1]} 19. c7 {[%clk 0:00:32.7]} 19... Na6
{[%clk 0:00:26.1]} 20. Nb5 {[%clk 0:00:27.7]} 20... cxb3 {[%clk 0:00:14.8]} 21.
e5 {[%clk 0:00:28.7]} 21... Rac8 {[%clk 0:00:11.3]} 22. Bb7 {[%clk 0:00:27.2]}
22... Nxf2 {[%clk 0:00:05.4]} 23. Rxc5 {[%clk 0:00:22.9]} 23... Nxc5 {[%clk
0:00:04.5]} 24. Bxc8 {[%clk 0:00:24.4]} 24... Nfd3 {[%clk 0:00:03.5]} 25. Nd6
{[%clk 0:00:15.1]} 25... Nxb2 {[%clk 0:00:04.4]} 26. Rxb2 {[%clk 0:00:16.1]}
26... Bc2 {[%clk 0:00:05]} 27. Bb7 {[%clk 0:00:04.1]} 27... Nd3 {[%clk
0:00:06.1]} 28. Rxb3 {[%clk 0:00:04.2]} 28... Bxb3 {[%clk 0:00:08]} 29. c8=Q
{[%clk 0:00:05.5]} 29... Rxc8 {[%clk 0:00:09.1]} 30. Bxc8 {[%clk 0:00:05.4]}
30... Nxe5 {[%clk 0:00:11]} 31. Ba6 {[%clk 0:00:06.2]} 31... Kf8 {[%clk
0:00:10.9]} 32. Bb5 {[%clk 0:00:06.1]} 32... a4 {[%clk 0:00:07.6]} 33. Kf2
{[%clk 0:00:04.9]} 33... Ke7 {[%clk 0:00:08.5]} 34. Nc8+ {[%clk 0:00:06.5]}
34... Kd8 {[%clk 0:00:08.2]} 35. Nb6 {[%clk 0:00:08.4]} 35... Ke7 {[%clk
0:00:06.3]} 36. Ke3 {[%clk 0:00:06.4]} 36... g5 {[%clk 0:00:07.2]} 37. Ke4
{[%clk 0:00:04.6]} 37... Ng4 {[%clk 0:00:07.8]} 38. h4 {[%clk 0:00:03.7]} 38...
f5+ {[%clk 0:00:07.8]} 39. Kd3 {[%clk 0:00:05.2]} 39... f4 {[%clk 0:00:06.8]}
40. hxg5 {[%clk 0:00:06.3]} 40... fxg3 {[%clk 0:00:06.9]} 41. Bc6 {[%clk
0:00:03.4]} 41... hxg5 {[%clk 0:00:06.8]} 42. Ke2 {[%clk 0:00:04.9]} 42... Kd6
{[%clk 0:00:05.3]} 43. Bf3 {[%clk 0:00:03.2]} 43... Ne5 {[%clk 0:00:05.8]} 44.
Be4 {[%clk 0:00:04.7]} 44... Kc5 {[%clk 0:00:06.8]} 45. Nc8 {[%clk 0:00:05.1]}
45... Bd5 {[%clk 0:00:06.8]} 46. Bc2 {[%clk 0:00:05.1]} 46... Ng4 {[%clk
0:00:03.9]} 47. Kf1 {[%clk 0:00:04.3]} 47... Ne3+ {[%clk 0:00:04.8]} 48. Kg1
{[%clk 0:00:05.9]} 48... Nxc2 {[%clk 0:00:06.7]} 49. Ne7 {[%clk 0:00:07.1]}
49... Nxa3 {[%clk 0:00:07.8]} 50. Ng6 {[%clk 0:00:08.5]} 50... Nc4 {[%clk
0:00:08.4]} 51. Ne5 {[%clk 0:00:10.4]} 51... Nxe5 {[%clk 0:00:09.3]} 0-1

[Event "*** Biggest EVER Titled Tuesday"]
[Site "Chess.com"]
[Date "2018.04.17"]
[Round "6"]
[White "ShimanovAlex"]
[Black "FairChess_on_YouTube"]
[Result "0-1"]
[WhiteElo "2726"]
[BlackElo "2897"]
[TimeControl "180+2"]
[EndTime "14:24:32 PDT"]
[Termination "FairChess_on_YouTube won on time"]

1. d4 {[%clk 0:02:54.5]} 1... Nf6 {[%clk 0:03:00.5]} 2. Nf3 {[%clk 0:02:55.2]}
2... d5 {[%clk 0:02:59.9]} 3. Bf4 {[%clk 0:02:53]} 3... g6 {[%clk 0:03:00.5]} 4.
e3 {[%clk 0:02:53.4]} 4... Bg7 {[%clk 0:03:01.4]} 5. c4 {[%clk 0:02:54.3]} 5...
c5 {[%clk 0:02:58.7]} 6. dxc5 {[%clk 0:02:51.5]} 6... Qa5+ {[%clk 0:02:58.4]} 7.
Qd2 {[%clk 0:02:51.3]} 7... Qxc5 {[%clk 0:02:57.8]} 8. Nc3 {[%clk 0:02:41.7]}
8... dxc4 {[%clk 0:02:56]} 9. Qd4 {[%clk 0:02:41.3]} 9... Nbd7 {[%clk
0:02:35.7]} 10. Qxc5 {[%clk 0:02:28.3]} 10... Nxc5 {[%clk 0:02:36.2]} 11. Bxc4
{[%clk 0:02:29.8]} 11... O-O {[%clk 0:02:32.6]} 12. Rc1 {[%clk 0:02:25.1]} 12...
Be6 {[%clk 0:02:28.6]} 13. Bxe6 {[%clk 0:02:24.4]} 13... Nd3+ {[%clk 0:02:14.8]}
14. Kd2 {[%clk 0:02:18.7]} 14... Rad8 {[%clk 0:02:15.4]} 15. Bc7 {[%clk
0:01:57.6]} 15... fxe6 {[%clk 0:02:11.6]} 16. Bxd8 {[%clk 0:01:55.7]} 16... Rxd8
{[%clk 0:02:13.5]} 17. Ke2 {[%clk 0:01:51.3]} 17... Nxc1+ {[%clk 0:02:11.2]} 18.
Rxc1 {[%clk 0:01:53.2]} 18... Rc8 {[%clk 0:02:07.5]} 19. Rd1 {[%clk 0:01:52.3]}
19... Nd5 {[%clk 0:02:05.9]} 20. Nxd5 {[%clk 0:01:27.9]} 20... exd5 {[%clk
0:02:07.8]} 21. Rxd5 {[%clk 0:01:29.4]} 21... Rc2+ {[%clk 0:02:06.2]} 22. Rd2
{[%clk 0:01:15.7]} 22... Rxb2 {[%clk 0:02:07.2]} 23. Rxb2 {[%clk 0:01:15.2]}
23... Bxb2 {[%clk 0:02:09.1]} 24. Kd3 {[%clk 0:01:16.9]} 24... Bf6 {[%clk
0:02:04.8]} 25. a4 {[%clk 0:01:16.2]} 25... Kf7 {[%clk 0:02:04.4]} 26. Kc4
{[%clk 0:01:17.2]} 26... Ke6 {[%clk 0:02:03.8]} 27. Nd2 {[%clk 0:01:12.2]} 27...
Kd6 {[%clk 0:02:01.8]} 28. Nb3 {[%clk 0:01:08.7]} 28... Kc6 {[%clk 0:01:57.5]}
29. Na5+ {[%clk 0:01:08.3]} 29... Kb6 {[%clk 0:01:55]} 30. Nb3 {[%clk
0:01:09.4]} 30... Kc6 {[%clk 0:01:48.1]} 31. Na5+ {[%clk 0:01:10]} 31... Kc7
{[%clk 0:01:49.1]} 32. Kd5 {[%clk 0:01:07]} 32... b6 {[%clk 0:01:42.4]} 33. Nb3
{[%clk 0:01:05.7]} 33... Kd7 {[%clk 0:01:42.1]} 34. e4 {[%clk 0:00:57.3]} 34...
e6+ {[%clk 0:01:38.3]} 35. Kc4 {[%clk 0:00:58.5]} 35... Kc6 {[%clk 0:01:30.3]}
36. g4 {[%clk 0:00:51]} 36... a6 {[%clk 0:01:20.2]} 37. h3 {[%clk 0:00:44.1]}
37... b5+ {[%clk 0:01:19.6]} 38. axb5+ {[%clk 0:00:45.1]} 38... axb5+ {[%clk
0:01:21.5]} 39. Kd3 {[%clk 0:00:46.6]} 39... g5 {[%clk 0:01:16.8]} 40. f3 {[%clk
0:00:46.3]} 40... Kd6 {[%clk 0:01:13.9]} 41. Ke3 {[%clk 0:00:41.9]} 41... Be5
{[%clk 0:01:06.2]} 42. Kd3 {[%clk 0:00:40.7]} 42... h6 {[%clk 0:01:03.9]} 43.
Ke3 {[%clk 0:00:40.2]} 43... Bh2 {[%clk 0:01:02.8]} 44. Kd3 {[%clk 0:00:34.2]}
44... Bg1 {[%clk 0:01:01.6]} 45. Ke2 {[%clk 0:00:33.5]} 45... Ke5 {[%clk
0:01:01.4]} 46. Kf1 {[%clk 0:00:28.1]} 46... Bb6 {[%clk 0:00:59.2]} 47. Ke2
{[%clk 0:00:23.9]} 47... Kf4 {[%clk 0:00:59.6]} 48. Nc1 {[%clk 0:00:19.8]} 48...
Kg3 {[%clk 0:00:57.5]} 49. Nd3 {[%clk 0:00:20.6]} 49... Kxh3 {[%clk 0:00:57.4]}
50. Ne5 {[%clk 0:00:20.1]} 50... b4 {[%clk 0:00:51.4]} 51. Nf7 {[%clk
0:00:20.3]} 51... Kg3 {[%clk 0:00:44.3]} 52. Nxh6 {[%clk 0:00:20.8]} 52... b3
{[%clk 0:00:45.1]} 53. Kd3 {[%clk 0:00:19.7]} 53... Kxf3 {[%clk 0:00:45.4]} 54.
Kc3 {[%clk 0:00:14.7]} 54... Kxe4 {[%clk 0:00:41.7]} 55. Kxb3 {[%clk 0:00:15.5]}
55... Bc7 {[%clk 0:00:33.9]} 56. Kc2 {[%clk 0:00:14.9]} 56... Bf4 {[%clk
0:00:31.6]} 57. Kd1 {[%clk 0:00:14.5]} 57... Kf3 {[%clk 0:00:32.5]} 58. Nf7
{[%clk 0:00:06.9]} 58... e5 {[%clk 0:00:29.6]} 59. Nd6 {[%clk 0:00:03.5]} 59...
e4 {[%clk 0:00:28.2]} 60. Nb5 {[%clk 0:00:05]} 60... Be5 {[%clk 0:00:27.3]} 0-1